[Event "Late-Titled-Tuesday-Blitz-June-04-2024"]
[Site "Chess.com"]
[Date "2024.06.04"]
[Round "8"]
[White "scrambleyourbrain"]
[Black "FlemingA"]
[Result "1-0"]
[WhiteElo "2391"]
[BlackElo "2469"]
[TimeControl "180+1"]
[EndTime "15:25:38 PDT"]
[Termination "scrambleyourbrain won on time"]

1. e4 {[%clk 0:03:00.9]} 1... g6 {[%clk 0:02:56]} 2. d4 {[%clk 0:03:00.6]} 2...
c5 {[%clk 0:02:54.8]} 3. dxc5 {[%clk 0:02:59]} 3... Bg7 {[%clk 0:02:54.7]} 4. c3
{[%clk 0:02:58.6]} 4... b6 {[%clk 0:02:54.1]} 5. cxb6 {[%clk 0:02:57.6]} 5...
Qxb6 {[%clk 0:02:54.8]} 6. Qb3 {[%clk 0:02:55.9]} 6... Bb7 {[%clk 0:02:45.4]} 7.
Be3 {[%clk 0:02:52]} 7... Qc7 {[%clk 0:02:35.8]} 8. Nd2 {[%clk 0:02:50.2]} 8...
Nc6 {[%clk 0:02:34.5]} 9. Bc4 {[%clk 0:02:48.7]} 9... e6 {[%clk 0:02:28.4]} 10.
Ne2 {[%clk 0:02:48.5]} 10... Na5 {[%clk 0:02:28.2]} 11. Qa4 {[%clk 0:02:41.6]}
11... Nxc4 {[%clk 0:02:19.2]} 12. Qxc4 {[%clk 0:02:40.2]} 12... Qd8 {[%clk
0:02:00.6]} 13. O-O {[%clk 0:02:36.8]} 13... Ne7 {[%clk 0:02:01.2]} 14. Qb4
{[%clk 0:02:33]} 14... Ba6 {[%clk 0:01:42]} 15. Rfe1 {[%clk 0:02:28.2]} 15...
O-O {[%clk 0:01:40.4]} 16. Bc5 {[%clk 0:02:28.1]} 16... Nc6 {[%clk 0:01:35]} 17.
Qa3 {[%clk 0:02:27.9]} 17... Re8 {[%clk 0:01:33.3]} 18. Qxa6 {[%clk 0:02:26.6]}
18... Qg5 {[%clk 0:01:30.2]} 19. Be3 {[%clk 0:02:23.6]} 19... Qh5 {[%clk
0:01:30.6]} 20. Ng3 {[%clk 0:02:22.5]} 20... Qg4 {[%clk 0:01:30.8]} 21. h3
{[%clk 0:02:21.9]} 21... Qh4 {[%clk 0:01:31.3]} 22. Nf3 {[%clk 0:02:21.1]} 22...
Qe7 {[%clk 0:01:30.5]} 23. Rad1 {[%clk 0:02:19.5]} 23... Rab8 {[%clk 0:01:30.8]}
24. b4 {[%clk 0:02:18.8]} 24... h5 {[%clk 0:01:29.9]} 25. Bc5 {[%clk 0:02:18.5]}
25... Qf6 {[%clk 0:01:28.5]} 26. e5 {[%clk 0:02:18.6]} 26... Qd8 {[%clk
0:01:28.5]} 27. Nd4 {[%clk 0:02:14.8]} 27... Nxe5 {[%clk 0:01:26.4]} 28. Rxe5
{[%clk 0:02:12.3]} 28... Bxe5 {[%clk 0:01:26.3]} 29. Nc6 {[%clk 0:02:12.9]}
29... dxc6 {[%clk 0:00:57.2]} 30. Rxd8 {[%clk 0:02:11.2]} 30... Rexd8 {[%clk
0:00:58.1]} 31. Bd4 {[%clk 0:02:09.8]} 31... Bxd4 {[%clk 0:00:28.9]} 32. cxd4
{[%clk 0:02:08.9]} 32... Rxd4 {[%clk 0:00:29.8]} 33. a3 {[%clk 0:02:01]} 33...
h4 {[%clk 0:00:18.8]} 34. Qxa7 {[%clk 0:01:51.9]} 34... Rd1+ {[%clk 0:00:15.4]}
35. Nf1 {[%clk 0:01:51.7]} 35... Rbd8 {[%clk 0:00:14.4]} 36. Qe7 {[%clk
0:01:44.9]} 36... R8d5 {[%clk 0:00:11.4]} 37. Qxh4 {[%clk 0:01:44.7]} 37... Ra1
{[%clk 0:00:08.7]} 38. Qc4 {[%clk 0:01:39.8]} 38... Rdd1 {[%clk 0:00:03.4]} 39.
a4 {[%clk 0:01:38.5]} 39... Rxa4 {[%clk 0:00:02.4]} 40. Kh2 {[%clk 0:01:37.3]}
40... Raa1 {[%clk 0:00:01.3]} 41. Ne3 {[%clk 0:01:37.2]} 41... Rh1+ {[%clk
0:00:02.1]} 42. Kg3 {[%clk 0:01:37.6]} 42... Rhc1 {[%clk 0:00:02.9]} 43. Qd4
{[%clk 0:01:36.1]} 43... Rab1 {[%clk 0:00:03.4]} 44. Ng4 {[%clk 0:01:35]} 44...
Rb3+ {[%clk 0:00:03.1]} 45. f3 {[%clk 0:01:35.3]} 45... Rbc3 {[%clk 0:00:01.2]}
46. Qd8+ {[%clk 0:01:27.8]} 46... Kg7 {[%clk 0:00:01.7]} 47. Qf6+ {[%clk
0:01:28.5]} 47... Kf8 {[%clk 0:00:02.2]} 48. Ne5 {[%clk 0:01:27.8]} 1-0

[Event "Late-Titled-Tuesday-Blitz-June-04-2024"]
[Site "Chess.com"]
[Date "2024.06.04"]
[Round "8"]
[White "NajdorfPlayerc5"]
[Black "Hirna2005"]
[Result "1-0"]
[WhiteElo "2450"]
[BlackElo "2329"]
[TimeControl "180+1"]
[EndTime "15:25:41 PDT"]
[Termination "NajdorfPlayerc5 won by checkmate"]

1. d4 {[%clk 0:03:00.9]} 1... g6 {[%clk 0:03:00.3]} 2. e4 {[%clk 0:02:57.5]}
2... Bg7 {[%clk 0:03:00.9]} 3. Nc3 {[%clk 0:02:55]} 3... d6 {[%clk 0:03:01.4]}
4. f4 {[%clk 0:02:54.7]} 4... a6 {[%clk 0:03:01.5]} 5. Nf3 {[%clk 0:02:53.9]}
5... b5 {[%clk 0:03:01.3]} 6. Bd3 {[%clk 0:02:42.5]} 6... Bb7 {[%clk 0:02:58.6]}
7. O-O {[%clk 0:02:42]} 7... Nd7 {[%clk 0:02:57.6]} 8. a4 {[%clk 0:02:41.3]}
8... b4 {[%clk 0:02:56.7]} 9. Ne2 {[%clk 0:02:41.4]} 9... c5 {[%clk 0:02:52.8]}
10. c4 {[%clk 0:02:41.2]} 10... cxd4 {[%clk 0:02:46.7]} 11. Nexd4 {[%clk
0:02:33.1]} 11... Nc5 {[%clk 0:02:45.8]} 12. Qe2 {[%clk 0:01:56.9]} 12... e6
{[%clk 0:02:26.7]} 13. Bd2 {[%clk 0:01:49.5]} 13... a5 {[%clk 0:02:16.7]} 14.
Rfd1 {[%clk 0:01:22.9]} 14... Nf6 {[%clk 0:02:09.6]} 15. e5 {[%clk 0:01:15.4]}
15... dxe5 {[%clk 0:02:04.9]} 16. fxe5 {[%clk 0:01:08.8]} 16... Nfd7 {[%clk
0:01:46.3]} 17. Bg5 {[%clk 0:00:32.2]} 17... Qb6 {[%clk 0:01:40.5]} 18. Kh1
{[%clk 0:00:32.3]} 18... O-O {[%clk 0:01:29.8]} 19. b3 {[%clk 0:00:31.6]} 19...
Bxf3 {[%clk 0:01:20.8]} 20. Nxf3 {[%clk 0:00:30.5]} 20... Nxb3 {[%clk
0:01:20.4]} 21. Rab1 {[%clk 0:00:25.3]} 21... Nbc5 {[%clk 0:01:17.4]} 22. Bc2
{[%clk 0:00:25.1]} 22... Rfe8 {[%clk 0:01:09.9]} 23. Rd6 {[%clk 0:00:24.6]}
23... Qc7 {[%clk 0:01:08.8]} 24. Rbd1 {[%clk 0:00:24]} 24... Nb6 {[%clk
0:01:01.2]} 25. Bf6 {[%clk 0:00:18.1]} 25... Bf8 {[%clk 0:00:59.7]} 26. R6d4
{[%clk 0:00:16.6]} 26... b3 {[%clk 0:00:51]} 27. Bb1 {[%clk 0:00:15.3]} 27...
Ncxa4 {[%clk 0:00:49.2]} 28. Ng5 {[%clk 0:00:11.3]} 28... Nc3 {[%clk 0:00:34.7]}
29. Qh5 {[%clk 0:00:10.9]} 29... gxh5 {[%clk 0:00:31.4]} 30. Bxh7# {[%clk
0:00:10.1]} 1-0

[Event "Late-Titled-Tuesday-Blitz-June-04-2024"]
[Site "Chess.com"]
[Date "2024.06.04"]
[Round "8"]
[White "yobdc"]
[Black "Der_Balak_3Halak"]
[Result "1-0"]
[WhiteElo "2535"]
[BlackElo "2386"]
[TimeControl "180+1"]
[EndTime "15:25:43 PDT"]
[Termination "yobdc won by resignation"]

1. e4 {[%clk 0:02:57.9]} 1... c5 {[%clk 0:02:59.2]} 2. Nf3 {[%clk 0:02:57]} 2...
Nc6 {[%clk 0:02:59.8]} 3. Bb5 {[%clk 0:02:56.6]} 3... d6 {[%clk 0:02:58.7]} 4.
O-O {[%clk 0:02:55.1]} 4... Bd7 {[%clk 0:02:58.9]} 5. Re1 {[%clk 0:02:55.1]}
5... e5 {[%clk 0:02:57.1]} 6. c3 {[%clk 0:02:54.4]} 6... Nge7 {[%clk 0:02:57.1]}
7. d4 {[%clk 0:02:51.8]} 7... cxd4 {[%clk 0:02:57.2]} 8. cxd4 {[%clk 0:02:51.9]}
8... a6 {[%clk 0:02:48.9]} 9. Bc4 {[%clk 0:02:48.8]} 9... b5 {[%clk 0:02:45.2]}
10. Bd5 {[%clk 0:02:48.1]} 10... Qc7 {[%clk 0:02:34.6]} 11. Nc3 {[%clk
0:02:43.8]} 11... g6 {[%clk 0:02:31.3]} 12. Bg5 {[%clk 0:02:41.7]} 12... Bg7
{[%clk 0:02:14.1]} 13. Rc1 {[%clk 0:02:26.4]} 13... Qd8 {[%clk 0:01:42.7]} 14.
dxe5 {[%clk 0:02:16.6]} 14... dxe5 {[%clk 0:01:43.6]} 15. a4 {[%clk 0:01:53.8]}
15... b4 {[%clk 0:01:38.4]} 16. Nb1 {[%clk 0:01:41.7]} 16... Rc8 {[%clk
0:01:35.6]} 17. Nbd2 {[%clk 0:01:35.2]} 17... O-O {[%clk 0:01:32.5]} 18. Nc4
{[%clk 0:01:35.1]} 18... h6 {[%clk 0:01:00.9]} 19. Be3 {[%clk 0:01:34.6]} 19...
Bg4 {[%clk 0:00:54.2]} 20. Nd6 {[%clk 0:01:23.8]} 20... Bxf3 {[%clk 0:00:50.3]}
21. gxf3 {[%clk 0:01:22.6]} 21... Nxd5 {[%clk 0:00:21.8]} 22. Nxc8 {[%clk
0:01:22.3]} 22... Nxe3 {[%clk 0:00:19.6]} 23. Qxd8 {[%clk 0:01:18.2]} 23... Rxd8
{[%clk 0:00:14.7]} 24. Rxc6 {[%clk 0:01:15.7]} 24... Nd1 {[%clk 0:00:11]} 25.
Ne7+ {[%clk 0:00:44.5]} 25... Kh7 {[%clk 0:00:09.6]} 26. Rc2 {[%clk 0:00:34.5]}
26... b3 {[%clk 0:00:09.7]} 27. Rce2 {[%clk 0:00:34.5]} 27... h5 {[%clk
0:00:08.7]} 28. Nd5 {[%clk 0:00:33.6]} 1-0

[Event "Late-Titled-Tuesday-Blitz-June-04-2024"]
[Site "Chess.com"]
[Date "2024.06.04"]
[Round "8"]
[White "rdarruda"]
[Black "ChEsper99"]
[Result "1-0"]
[WhiteElo "2511"]
[BlackElo "2244"]
[TimeControl "180+1"]
[EndTime "15:25:48 PDT"]
[Termination "rdarruda won by resignation"]

1. d4 {[%clk 0:02:58.6]} 1... d5 {[%clk 0:02:53.8]} 2. Nf3 {[%clk 0:02:57.7]}
2... Nf6 {[%clk 0:02:40.9]} 3. c4 {[%clk 0:02:57.6]} 3... e6 {[%clk 0:02:25.8]}
4. Nc3 {[%clk 0:02:55.7]} 4... Bb4 {[%clk 0:02:17.7]} 5. Bf4 {[%clk 0:02:54.4]}
5... O-O {[%clk 0:02:07]} 6. e3 {[%clk 0:02:54.4]} 6... c5 {[%clk 0:02:03]} 7.
a3 {[%clk 0:02:53.3]} 7... Ba5 {[%clk 0:01:58.3]} 8. Be2 {[%clk 0:02:50.8]} 8...
Nc6 {[%clk 0:01:54.7]} 9. dxc5 {[%clk 0:02:45.9]} 9... Bxc3+ {[%clk 0:01:54.6]}
10. bxc3 {[%clk 0:02:44.5]} 10... Qa5 {[%clk 0:01:54.9]} 11. O-O {[%clk
0:02:42.4]} 11... Qxc5 {[%clk 0:01:44.7]} 12. Ne5 {[%clk 0:02:29.4]} 12... Ne4
{[%clk 0:01:28.3]} 13. Qc2 {[%clk 0:02:15.6]} 13... Nxe5 {[%clk 0:01:23.3]} 14.
Bxe5 {[%clk 0:02:16.5]} 14... f6 {[%clk 0:01:20.2]} 15. Bd4 {[%clk 0:02:14.9]}
15... Qc6 {[%clk 0:01:05.5]} 16. cxd5 {[%clk 0:02:15]} 16... exd5 {[%clk
0:01:03.1]} 17. c4 {[%clk 0:02:15.1]} 17... Be6 {[%clk 0:01:00.9]} 18. Bd3
{[%clk 0:02:08]} 18... f5 {[%clk 0:00:42.1]} 19. Rfc1 {[%clk 0:01:46.5]} 19...
dxc4 {[%clk 0:00:40.7]} 20. Bxc4 {[%clk 0:01:47.4]} 20... Bxc4 {[%clk
0:00:41.2]} 21. Qxc4+ {[%clk 0:01:47.3]} 21... Qxc4 {[%clk 0:00:41.8]} 22. Rxc4
{[%clk 0:01:47.8]} 22... Rfc8 {[%clk 0:00:37.8]} 23. Rac1 {[%clk 0:01:47.6]}
23... Rxc4 {[%clk 0:00:30.8]} 24. Rxc4 {[%clk 0:01:48.5]} 24... Nd6 {[%clk
0:00:26]} 25. Rc7 {[%clk 0:01:46.2]} 25... Rc8 {[%clk 0:00:26.4]} 26. Rxc8+
{[%clk 0:01:40.3]} 26... Nxc8 {[%clk 0:00:26.2]} 27. f3 {[%clk 0:01:38.2]} 27...
Kf7 {[%clk 0:00:25.2]} 28. e4 {[%clk 0:01:34.6]} 28... fxe4 {[%clk 0:00:25]} 29.
fxe4 {[%clk 0:01:34.8]} 29... g6 {[%clk 0:00:24.5]} 30. Kf2 {[%clk 0:01:34.2]}
30... Nd6 {[%clk 0:00:20.4]} 31. Ke3 {[%clk 0:01:33.5]} 31... a6 {[%clk
0:00:10.8]} 32. Kd3 {[%clk 0:01:33]} 32... Ke6 {[%clk 0:00:10.8]} 33. a4 {[%clk
0:01:30.6]} 33... b5 {[%clk 0:00:09.2]} 34. a5 {[%clk 0:01:30]} 34... Nc4 {[%clk
0:00:07.4]} 35. Bc3 {[%clk 0:01:30.1]} 35... h5 {[%clk 0:00:05.8]} 36. Kd4
{[%clk 0:01:29.7]} 36... Kd6 {[%clk 0:00:05.6]} 37. Bb4+ {[%clk 0:01:28.8]}
37... Ke6 {[%clk 0:00:06.2]} 38. Kc5 {[%clk 0:01:27.4]} 38... Ke5 {[%clk
0:00:05.3]} 39. Kc6 {[%clk 0:01:24.5]} 39... Kxe4 {[%clk 0:00:03.4]} 40. Kb7
{[%clk 0:01:25]} 40... Ke3 {[%clk 0:00:01.8]} 41. Kxa6 {[%clk 0:01:25.5]} 41...
Nxa5 {[%clk 0:00:02.1]} 42. Kxa5 {[%clk 0:01:22.1]} 42... Kf2 {[%clk 0:00:03]}
43. h4 {[%clk 0:01:17.2]} 43... Kxg2 {[%clk 0:00:02.9]} 44. Kxb5 {[%clk
0:01:14.8]} 44... Kh3 {[%clk 0:00:02.2]} 45. Be7 {[%clk 0:01:15.3]} 45... Kg4
{[%clk 0:00:02.4]} 46. Kc5 {[%clk 0:01:14.7]} 46... g5 {[%clk 0:00:02.1]} 47.
Bxg5 {[%clk 0:01:14]} 1-0

[Event "Late-Titled-Tuesday-Blitz-June-04-2024"]
[Site "Chess.com"]
[Date "2024.06.04"]
[Round "8"]
[White "lamomiajunior"]
[Black "N_Mullodzhanov"]
[Result "1-0"]
[WhiteElo "2729"]
[BlackElo "2526"]
[TimeControl "180+1"]
[EndTime "15:25:49 PDT"]
[Termination "lamomiajunior won on time"]

1. e4 {[%clk 0:03:00.9]} 1... c6 {[%clk 0:02:59.7]} 2. d4 {[%clk 0:03:00.6]}
2... d5 {[%clk 0:02:59.3]} 3. e5 {[%clk 0:03:01.2]} 3... Bf5 {[%clk 0:02:58.7]}
4. Bd3 {[%clk 0:03:01.1]} 4... Bxd3 {[%clk 0:02:58.8]} 5. Qxd3 {[%clk 0:03:02]}
5... Qa5+ {[%clk 0:02:59]} 6. Nd2 {[%clk 0:03:00.3]} 6... e6 {[%clk 0:02:59.1]}
7. Ne2 {[%clk 0:02:59.9]} 7... c5 {[%clk 0:02:59.4]} 8. c3 {[%clk 0:02:59.2]}
8... Nd7 {[%clk 0:02:59.7]} 9. O-O {[%clk 0:02:57.3]} 9... Ne7 {[%clk
0:02:59.9]} 10. b4 {[%clk 0:02:56.3]} 10... cxb4 {[%clk 0:02:53.2]} 11. cxb4
{[%clk 0:02:57.2]} 11... Qb6 {[%clk 0:02:38.5]} 12. a3 {[%clk 0:02:56.9]} 12...
Rc8 {[%clk 0:02:35.8]} 13. Bb2 {[%clk 0:02:52.9]} 13... Nf5 {[%clk 0:02:32.7]}
14. Nf3 {[%clk 0:02:51.8]} 14... h5 {[%clk 0:02:31.8]} 15. g3 {[%clk 0:02:47.7]}
15... Be7 {[%clk 0:02:30.9]} 16. h4 {[%clk 0:02:46.2]} 16... O-O {[%clk
0:02:30.5]} 17. Bc1 {[%clk 0:02:43.9]} 17... Rc7 {[%clk 0:02:20.2]} 18. Bg5
{[%clk 0:02:42.8]} 18... f6 {[%clk 0:02:20]} 19. exf6 {[%clk 0:02:41.5]} 19...
Bxf6 {[%clk 0:02:15.9]} 20. Bxf6 {[%clk 0:02:34.4]} 20... Nxf6 {[%clk
0:02:14.6]} 21. Nf4 {[%clk 0:02:33.4]} 21... Rfc8 {[%clk 0:02:05.8]} 22. Rfe1
{[%clk 0:02:33.2]} 22... Rc3 {[%clk 0:02:02.3]} 23. Qe2 {[%clk 0:02:30.9]} 23...
Re8 {[%clk 0:01:44.6]} 24. Rad1 {[%clk 0:02:25.8]} 24... e5 {[%clk 0:01:23.5]}
25. dxe5 {[%clk 0:02:24.7]} 25... Nxg3 {[%clk 0:01:22.5]} 26. Qd2 {[%clk
0:02:11.9]} 26... Nge4 {[%clk 0:00:56.5]} 27. Rxe4 {[%clk 0:01:52.5]} 27... Nxe4
{[%clk 0:00:39.2]} 28. Qxd5+ {[%clk 0:01:50.7]} 28... Kh8 {[%clk 0:00:34.7]} 29.
Qxe4 {[%clk 0:01:50.7]} 29... Qc6 {[%clk 0:00:25.3]} 30. Qxc6 {[%clk 0:01:44.4]}
30... bxc6 {[%clk 0:00:25.1]} 31. Ng5 {[%clk 0:01:44.7]} 31... Rxa3 {[%clk
0:00:22]} 32. e6 {[%clk 0:01:42.4]} 32... Rb3 {[%clk 0:00:17.9]} 33. Ng6+ {[%clk
0:01:42.3]} 33... Kg8 {[%clk 0:00:18]} 34. e7 {[%clk 0:01:41.5]} 34... Rxb4
{[%clk 0:00:18.4]} 35. Rd8 {[%clk 0:01:37.9]} 35... Rb8 {[%clk 0:00:18.5]} 36.
Rxb8 {[%clk 0:01:07]} 36... Rxb8 {[%clk 0:00:17.7]} 37. Ne5 {[%clk 0:01:04.5]}
37... Rc8 {[%clk 0:00:05.5]} 38. Nxc6 {[%clk 0:01:03.7]} 38... g6 {[%clk
0:00:05.7]} 39. Nd8 {[%clk 0:01:02.7]} 39... Kg7 {[%clk 0:00:02.7]} 40. e8=Q
{[%clk 0:01:02.7]} 40... Rc1+ {[%clk 0:00:01.7]} 41. Kg2 {[%clk 0:01:03]} 1-0

[Event "Late-Titled-Tuesday-Blitz-June-04-2024"]
[Site "Chess.com"]
[Date "2024.06.04"]
[Round "8"]
[White "oskariot"]
[Black "Kapitan_Bayan"]
[Result "0-1"]
[WhiteElo "2680"]
[BlackElo "2417"]
[TimeControl "180+1"]
[EndTime "15:25:49 PDT"]
[Termination "Kapitan_Bayan won on time"]

1. e4 {[%clk 0:03:00.9]} 1... c5 {[%clk 0:02:59.9]} 2. Nf3 {[%clk 0:03:00.1]}
2... d6 {[%clk 0:03:00.3]} 3. d4 {[%clk 0:03:00]} 3... cxd4 {[%clk 0:03:01.2]}
4. Nxd4 {[%clk 0:03:00.9]} 4... Nf6 {[%clk 0:03:01.6]} 5. Nc3 {[%clk 0:03:01.3]}
5... a6 {[%clk 0:03:02]} 6. h4 {[%clk 0:03:01.1]} 6... e5 {[%clk 0:03:00.5]} 7.
Nb3 {[%clk 0:03:01.2]} 7... Be7 {[%clk 0:03:00.4]} 8. Bg5 {[%clk 0:03:00.7]}
8... Nbd7 {[%clk 0:02:58]} 9. a4 {[%clk 0:02:59.9]} 9... O-O {[%clk 0:02:52]}
10. g4 {[%clk 0:02:38.2]} 10... b6 {[%clk 0:02:49.7]} 11. Bxf6 {[%clk
0:02:30.5]} 11... Nxf6 {[%clk 0:02:47.8]} 12. g5 {[%clk 0:02:30.9]} 12... Nd7
{[%clk 0:02:45.2]} 13. Bc4 {[%clk 0:02:31.5]} 13... Bb7 {[%clk 0:02:35.8]} 14.
Bd5 {[%clk 0:02:31.1]} 14... Bxd5 {[%clk 0:02:22.8]} 15. Nxd5 {[%clk 0:02:32]}
15... f6 {[%clk 0:02:21]} 16. g6 {[%clk 0:02:09.2]} 16... h6 {[%clk 0:02:06.4]}
17. Qd3 {[%clk 0:01:52]} 17... f5 {[%clk 0:01:55.5]} 18. exf5 {[%clk 0:01:52.9]}
18... Bxh4 {[%clk 0:01:49.8]} 19. Qc4 {[%clk 0:01:45.2]} 19... Bg5 {[%clk
0:01:26.9]} 20. f6 {[%clk 0:00:44.6]} 20... Kh8 {[%clk 0:01:07.7]} 21. f7 {[%clk
0:00:36.7]} 21... Rc8 {[%clk 0:01:02.2]} 22. Qe4 {[%clk 0:00:28]} 22... Nf6
{[%clk 0:00:56.2]} 23. Nxf6 {[%clk 0:00:27.7]} 23... Qxf6 {[%clk 0:00:56.8]} 24.
Rd1 {[%clk 0:00:22.7]} 24... b5 {[%clk 0:00:50.6]} 25. axb5 {[%clk 0:00:23.6]}
25... axb5 {[%clk 0:00:51.3]} 26. c3 {[%clk 0:00:09.9]} 26... Rc4 {[%clk
0:00:50.6]} 27. Qc2 {[%clk 0:00:10.3]} 27... Rf4 {[%clk 0:00:47.2]} 28. Rf1
{[%clk 0:00:08.4]} 28... Rf5 {[%clk 0:00:47.3]} 29. Nd2 {[%clk 0:00:02.1]} 29...
Qxg6 {[%clk 0:00:43.5]} 30. Ne4 {[%clk 0:00:02.1]} 30... Rf4 {[%clk 0:00:42]}
0-1

[Event "Late-Titled-Tuesday-Blitz-June-04-2024"]
[Site "Chess.com"]
[Date "2024.06.04"]
[Round "8"]
[White "HajiyevKanan"]
[Black "xasid81"]
[Result "0-1"]
[WhiteElo "2516"]
[BlackElo "2633"]
[TimeControl "180+1"]
[EndTime "15:25:49 PDT"]
[Termination "xasid81 won by resignation"]

1. d4 {[%clk 0:03:00.9]} 1... d5 {[%clk 0:02:57.9]} 2. Nf3 {[%clk 0:03:00.1]}
2... Nf6 {[%clk 0:02:57.7]} 3. c4 {[%clk 0:03:00.5]} 3... e6 {[%clk 0:02:57.5]}
4. cxd5 {[%clk 0:03:01.4]} 4... exd5 {[%clk 0:02:58.4]} 5. Nc3 {[%clk
0:03:02.2]} 5... a6 {[%clk 0:02:58.2]} 6. Qc2 {[%clk 0:03:02.3]} 6... Be7 {[%clk
0:02:56.8]} 7. Bf4 {[%clk 0:03:02.2]} 7... O-O {[%clk 0:02:57.4]} 8. e3 {[%clk
0:03:02.5]} 8... Nbd7 {[%clk 0:02:55.5]} 9. Be2 {[%clk 0:03:01.2]} 9... c6
{[%clk 0:02:55.8]} 10. O-O {[%clk 0:03:01.1]} 10... Re8 {[%clk 0:02:56.4]} 11.
Bd3 {[%clk 0:03:01.5]} 11... Nf8 {[%clk 0:02:57]} 12. Rab1 {[%clk 0:03:00.9]}
12... Ng6 {[%clk 0:02:57.5]} 13. Bg3 {[%clk 0:02:59.4]} 13... Nh5 {[%clk
0:02:57.4]} 14. Be5 {[%clk 0:02:57.5]} 14... Bg4 {[%clk 0:02:54.9]} 15. Nd2
{[%clk 0:02:43.7]} 15... Nxe5 {[%clk 0:02:52.2]} 16. dxe5 {[%clk 0:02:41.7]}
16... g6 {[%clk 0:02:51.8]} 17. h3 {[%clk 0:02:36.5]} 17... Be6 {[%clk
0:02:50.1]} 18. g4 {[%clk 0:02:33.4]} 18... Ng7 {[%clk 0:02:49.8]} 19. f4 {[%clk
0:02:33.7]} 19... d4 {[%clk 0:02:48.4]} 20. Nd1 {[%clk 0:02:19.9]} 20... dxe3
{[%clk 0:02:46.5]} 21. Nxe3 {[%clk 0:02:20.8]} 21... Qd4 {[%clk 0:02:45.9]} 22.
Rf3 {[%clk 0:02:10.8]} 22... Rad8 {[%clk 0:02:44]} 23. f5 {[%clk 0:01:47.8]}
23... Bg5 {[%clk 0:02:42]} 24. fxe6 {[%clk 0:01:43.6]} 24... Bxe3+ {[%clk
0:02:41.4]} 25. Kg2 {[%clk 0:01:42]} 25... Nxe6 {[%clk 0:02:40.5]} 26. Nc4
{[%clk 0:01:31.9]} 26... Nf4+ {[%clk 0:02:31.8]} 27. Kg3 {[%clk 0:01:18.2]}
27... Nxd3 {[%clk 0:02:24.2]} 28. Rxe3 {[%clk 0:00:59]} 28... Nxe5 {[%clk
0:02:15.5]} 29. Rbe1 {[%clk 0:00:38.2]} 29... f6 {[%clk 0:02:10.2]} 30. g5
{[%clk 0:00:28.5]} 30... Rf8 {[%clk 0:02:06.2]} 31. Nxe5 {[%clk 0:00:16.7]}
31... fxe5 {[%clk 0:02:06.4]} 32. Re4 {[%clk 0:00:11]} 32... Qd3+ {[%clk
0:02:01.3]} 33. Qxd3 {[%clk 0:00:11.3]} 33... Rxd3+ {[%clk 0:02:02]} 34. R1e3
{[%clk 0:00:08.7]} 34... Rxe3+ {[%clk 0:02:01]} 35. Rxe3 {[%clk 0:00:09.6]}
35... Re8 {[%clk 0:01:55.4]} 36. Kf3 {[%clk 0:00:09.9]} 36... Kf7 {[%clk
0:01:54.9]} 37. Ke4 {[%clk 0:00:10.1]} 37... Rd8 {[%clk 0:01:52.6]} 38. Rf3+
{[%clk 0:00:08.8]} 38... Ke7 {[%clk 0:01:52.8]} 39. Kxe5 {[%clk 0:00:07.9]}
39... Rd5+ {[%clk 0:01:52.7]} 40. Ke4 {[%clk 0:00:02.9]} 40... Rxg5 {[%clk
0:01:52.2]} 41. a4 {[%clk 0:00:02.7]} 41... Rh5 {[%clk 0:01:51]} 42. Rb3 {[%clk
0:00:02.2]} 42... b5 {[%clk 0:01:49.8]} 43. a5 {[%clk 0:00:02.5]} 43... Kd6
{[%clk 0:01:44.9]} 44. Kf4 {[%clk 0:00:02]} 44... c5 {[%clk 0:01:42.7]} 45. Kg4
{[%clk 0:00:02.4]} 45... Re5 {[%clk 0:01:40.7]} 46. Rf3 {[%clk 0:00:03]} 46...
h5+ {[%clk 0:01:39.7]} 47. Kh4 {[%clk 0:00:02.9]} 47... c4 {[%clk 0:01:38]} 48.
Rf6+ {[%clk 0:00:02.6]} 48... Re6 {[%clk 0:01:38.6]} 49. Rf8 {[%clk 0:00:02.5]}
49... Kc5 {[%clk 0:01:38.3]} 50. Ra8 {[%clk 0:00:02.4]} 50... Kb4 {[%clk
0:01:38.2]} 51. Rg8 {[%clk 0:00:01.7]} 51... Kxa5 {[%clk 0:01:37.9]} 52. Kg5
{[%clk 0:00:02.6]} 52... b4 {[%clk 0:01:37]} 53. Rc8 {[%clk 0:00:03]} 53... Kb5
{[%clk 0:01:36.7]} 54. Rb8+ {[%clk 0:00:03]} 54... Ka4 {[%clk 0:01:36.9]} 55.
Rc8 {[%clk 0:00:03.9]} 55... Kb3 {[%clk 0:01:36.7]} 56. Kf4 {[%clk 0:00:03.5]}
56... a5 {[%clk 0:01:36.3]} 57. Ra8 {[%clk 0:00:03.5]} 57... a4 {[%clk
0:01:36.1]} 0-1

[Event "Late-Titled-Tuesday-Blitz-June-04-2024"]
[Site "Chess.com"]
[Date "2024.06.04"]
[Round "8"]
[White "pinelone"]
[Black "SoCalJuniorChess"]
[Result "1-0"]
[WhiteElo "2415"]
[BlackElo "2213"]
[TimeControl "180+1"]
[EndTime "15:25:49 PDT"]
[Termination "pinelone won by resignation"]

1. Nf3 {[%clk 0:03:00.9]} 1... Nf6 {[%clk 0:02:57.9]} 2. c4 {[%clk 0:03:00.9]}
2... c5 {[%clk 0:02:55.2]} 3. Nc3 {[%clk 0:02:59.7]} 3... Nc6 {[%clk 0:02:55.2]}
4. g3 {[%clk 0:02:59]} 4... g6 {[%clk 0:02:55.1]} 5. Bg2 {[%clk 0:02:55.5]} 5...
Bg7 {[%clk 0:02:55.5]} 6. d4 {[%clk 0:02:56.1]} 6... cxd4 {[%clk 0:02:55]} 7.
Nxd4 {[%clk 0:02:56.7]} 7... O-O {[%clk 0:02:53.5]} 8. O-O {[%clk 0:02:57]} 8...
e6 {[%clk 0:02:49.8]} 9. Ndb5 {[%clk 0:02:56.5]} 9... a6 {[%clk 0:02:48.3]} 10.
Nd6 {[%clk 0:02:55.8]} 10... Ne8 {[%clk 0:02:45.6]} 11. Bf4 {[%clk 0:02:55.2]}
11... e5 {[%clk 0:02:43.6]} 12. Be3 {[%clk 0:02:54.4]} 12... Nd4 {[%clk
0:02:42.5]} 13. Nxe8 {[%clk 0:02:31.6]} 13... Rxe8 {[%clk 0:02:40.4]} 14. Rc1
{[%clk 0:02:23.5]} 14... d6 {[%clk 0:02:37.4]} 15. Qd2 {[%clk 0:02:12]} 15...
Nf5 {[%clk 0:02:27]} 16. Rfd1 {[%clk 0:02:08.8]} 16... Nxe3 {[%clk 0:02:26.3]}
17. Qxe3 {[%clk 0:02:08.3]} 17... Rb8 {[%clk 0:02:18.4]} 18. c5 {[%clk 0:02:00]}
18... Be6 {[%clk 0:01:51.2]} 19. cxd6 {[%clk 0:01:58.4]} 19... Qa5 {[%clk
0:01:49.3]} 20. Bd5 {[%clk 0:01:50]} 20... Bxd5 {[%clk 0:01:48]} 21. Nxd5 {[%clk
0:01:20.7]} 21... Red8 {[%clk 0:01:45]} 22. Ne7+ {[%clk 0:01:10.6]} 22... Kf8
{[%clk 0:01:42.7]} 23. Qa3 {[%clk 0:00:59.7]} 23... Qxa3 {[%clk 0:01:40.4]} 24.
bxa3 {[%clk 0:00:59.5]} 24... Rxd6 {[%clk 0:01:22.4]} 25. Rxd6 {[%clk
0:00:56.2]} 25... Kxe7 {[%clk 0:01:23]} 26. Rb6 {[%clk 0:00:52.6]} 26... Kd7
{[%clk 0:01:20.5]} 27. e4 {[%clk 0:00:42.4]} 27... Bf8 {[%clk 0:01:12.3]} 28. a4
{[%clk 0:00:41.7]} 28... Ba3 {[%clk 0:00:59.7]} 29. Rc3 {[%clk 0:00:37.1]} 29...
Be7 {[%clk 0:00:52.3]} 30. a5 {[%clk 0:00:33.6]} 30... f5 {[%clk 0:00:45]} 31.
exf5 {[%clk 0:00:32.4]} 31... gxf5 {[%clk 0:00:45.9]} 32. Rh6 {[%clk 0:00:31.2]}
32... Rc8 {[%clk 0:00:42]} 33. Rxc8 {[%clk 0:00:30]} 33... Kxc8 {[%clk
0:00:42.9]} 34. Rxh7 {[%clk 0:00:29.1]} 34... Bb4 {[%clk 0:00:43.8]} 35. h4
{[%clk 0:00:27.5]} 35... Bxa5 {[%clk 0:00:43.8]} 36. h5 {[%clk 0:00:27.8]} 36...
Bd2 {[%clk 0:00:41.3]} 37. h6 {[%clk 0:00:25.6]} 37... e4 {[%clk 0:00:38.1]} 38.
Rh8+ {[%clk 0:00:25.2]} 38... Kc7 {[%clk 0:00:35.2]} 39. h7 {[%clk 0:00:24]}
39... Bc3 {[%clk 0:00:35.6]} 40. Rg8 {[%clk 0:00:23.9]} 1-0